[Event "1000GM Schev-C-B February 2024"]
[Site "Santa Clara"]
[Date "2024.02.24"]
[Round "2.1"]
[White "Vidarte Morales, Arturo"]
[Black "Xia, Joshua"]
[Result "1-0"]
[ECO "D75"]
[WhiteElo "2261"]
[BlackElo "1922"]
[Annotator "TA"]
[PlyCount "135"]
[EventDate "2024.02.13"]
[EventType "schev"]
[EventCountry "USA"]
[SourceTitle "playchess.com"]
[Source "ChessBase"]
[SourceQuality "1"]
[TimeControl "5400+30"]

{[%evp 16,135,3,11,30,22,60,-13,80,5,13,0,-5,-6,-13,0,7,1,3,-27,-16,-26,-35,-21,-37,-83,-80,-89,-61,-74,-66,-66,-56,-47,-23,-40,-34,-72,-52,-66,-68,-59,-65,-71,-69,-72,-68,-74,-70,-67,-51,-62,-23,-51,-50,-35,-41,-36,0,0,0,0,0,0,8,8,12,9,46,31,39,62,60,33,102,80,72,12,20,20,20,10,20,11,26,8,8,8,10,15,80,10,11,11,14,8,458,43,170,170,447,413,396,396,29973,29973,29974,29973,29973,29974,29964,6083,29975,29976,29976,29977,29983,29984,29984,29985,29984,29983]} 1. Nf3 {[%emt 0:00:06]} Nf6 {[%emt 0:00:20]} 2. c4 {[%emt 0:00:11]} g6 {[%emt 0:00:09]} 3. Nc3 {[%emt 0:00:05]} Bg7 {[%emt 0:00:03]} 4. d4 {[%emt 0:00:14]} d5 {[%emt 0:00:06]} 5. cxd5 {[%emt 0:00:08]} Nxd5 {[%emt 0:00:14]} 6. g3 {[%emt 0:00:02]} O-O {[%emt 0:01:42]} 7. Bg2 {[%emt 0:00:03]} Nxc3 {[%emt 0:00:11]} 8. bxc3 {[%emt 0:00:08]} c5 {[%emt 0:00:04]} 9. O-O {[%emt 0:00:45]} Qa5 {[%emt 0:03:40]} 10. Bd2 {[%emt 0:03:48]} Rd8 {[%emt 0:01:01]} 11. e3 {[%emt 0:01:25]} (11. Qb3 $14) 11... Bf5 {[%emt 0:03:17]} (11... Qc7 $11) 12. Nh4 {[%emt 0:03:55]} (12. Ng5 $1 $16) 12... Bc8 $11 {[%emt 0:01:12]} 13. Nf3 {[%emt 0:06:56]} Qc7 {[%emt 0:12:06]} 14. Rc1 {[%emt 0:08:04]} Nc6 {[%emt 0:01:05]} 15. Qa4 {[%emt 0:06:54]} Bd7 {[%emt 0:08:08][%cal Oc6d4] ...Nxd4! ist eine echte Drohung.} 16. Qa3 {[%emt 0:00:42]} Be6 {[%emt 0:03:24]} 17. Ng5 {[%emt 0:08:03][%cal Og5e6] Schwarz muss nun Nxe6! beachten.} Bc4 {[%emt 0:01:58]} 18. Rfe1 {[%emt 0:17:33]} Qa5 {[%emt 0:09:03]} (18... b6 {scheint wilder zu sein.} 19. Qa4 b5 20. Qc2 e5) 19. Qxa5 {[%emt 0:08:28]} Nxa5 {[%emt 0:00:08]} 20. Ne4 {[%emt 0:00:22]} (20. Nf3 $15) 20... Rac8 $17 {[%emt 0:01:14]} (20... Bxa2 $2 21. Ra1 $18 (21. Nxc5 Bd5 $16)) 21. Ra1 {[%emt 0:08:41]} (21. dxc5 $2 f5 $19 (21... Bxa2 22. Ra1 $14) (21... Bxa2 22. Ra1 $14)) (21. Nxc5 $2 Rxc5 (21... Bxa2 $2 22. Ra1 $18) 22. dxc5 Rxd2 $19) 21... h6 {[%emt 0:01:00]} 22. Red1 {[%emt 0:08:46]} (22. dxc5 $2 {geht unter.} f5 23. Reb1 fxe4 $19) (22. Nxc5 $2 {ist das falsche Schlagen.} Rxc5 23. dxc5 Rxd2 $19) 22... b6 {[%emt 0:01:21]} 23. Be1 {[%emt 0:00:36]} f5 {[%emt 0:05:14]} 24. Nd2 {[%emt 0:00:32]} Be2 {[%emt 0:00:38]} 25. Rdc1 {[%emt 0:00:34]} e5 {[%emt 0:00:44]} 26. Nf3 {[%emt 0:01:35]} Nc4 {[%emt 0:11:36]} 27. Nxe5 {[%emt 0:01:29]} Nxe5 {[%emt 0:00:36]} 28. dxe5 {[%emt 0:00:03]} Bxe5 {[%emt 0:00:19]} 29. Bf1 {[%emt 0:01:49] Weiss hat schwache schwarze Felder} Bxf1 {[%emt 0:01:32]} 30. Kxf1 {[%emt 0:00:06]} c4 {[%emt 0:00:15]} 31. a4 {[%emt 0:00:16]} Rc5 {[%emt 0:00:34]} 32. Rab1 {[%emt 0:00:43]} g5 {[%emt 0:02:21]} 33. h3 {[%emt 0:01:21]} f4 {[%emt 0:00:35]} 34. exf4 {[%emt 0:02:50]} gxf4 {[%emt 0:00:10]} 35. gxf4 {[%emt 0:00:22]} Bxf4 {[%emt 0:01:45]} 36. Rd1 {[%emt 0:00:01]} Rcd5 {[%emt 0:08:07]} 37. Rxd5 {[%emt 0:01:10]} Rxd5 $11 {[%emt 0:00:08][%mdl 4096] Endspiel. KRB-KRB} 38. Rb4 {[%emt 0:00:24]} Rc5 {[%emt 0:00:26]} 39. Ke2 {[%emt 0:02:14]} Bd6 {[%emt 0:00:30] Droht ...Re5+ und aus.} 40. Rb5 {[%emt 0:01:08]} Rc7 {[%emt 0:04:11]} 41. Bd2 {[%emt 0:01:18]} Kg7 {[%emt 0:01:44]} 42. Be3 {[%emt 0:00:51]} Re7 {[%emt 0:00:45]} 43. Kf3 {[%emt 0:00:50]} Kg6 {[%emt 0:00:59]} 44. Bd4 {[%emt 0:00:54] Lässt Be5 nicht zu} Re6 {[%emt 0:07:04]} (44... h5 $14) 45. a5 $1 $16 {[%emt 0:02:55]} Bc7 {[%emt 0:00:18]} 46. axb6 {[%emt 0:00:26]} (46. h4 $16) 46... Bxb6 $11 {[%emt 0:00:32]} 47. Bxb6 {[%emt 0:00:29]} axb6 $16 {[%emt 0:00:14] KR-KR} 48. Rb4 {[%emt 0:01:16]} Rc6 {[%emt 0:01:08]} 49. Ke4 {[%emt 0:00:07]} Re6+ {[%emt 0:01:31]} 50. Kd5 {[%emt 0:00:36]} Rf6 {[%emt 0:00:13]} 51. Kxc4 {[%emt 0:00:41]} Rxf2 {[%emt 0:00:34]} 52. Rxb6+ {[%emt 0:00:12]} Kg5 {[%emt 0:00:25] [#]} 53. Rd6 {[%emt 0:01:17]} ({Besser ist} 53. h4+ $1 $16 Kh5 54. Rd6) 53... h5 $1 $11 {[%emt 0:01:01][%cal Bh6h5,Bh5h4][%mdl 32]} 54. Rd3 {[%emt 0:00:15] Droht stark Kd4.} h4 $1 {[%emt 0:00:33]} 55. Kd4 {[%emt 0:01:26] Und jetzt c4 wäre schön.} Kf6 $2 {[%emt 0:02:37][%mdl 8192]} (55... Rf8 $11) 56. Re3 $2 {[%emt 0:00:59]} (56. c4 $18) 56... Kf5 {[%emt 0:03:57]} (56... Rd2+ $1 $14 57. Ke4 Rc2) 57. c4 $18 {[%emt 0:00:07][%cal Bc3c4,Bc4c5][%mdl 32]} Rd2+ $2 {[%emt 0:01:48] [#]} (57... Rh2 58. Rd3 Ke6) 58. Rd3 $1 {[%emt 0:01:04]} Rg2 {[%emt 0:00:52]} 59. Rf3+ {[%emt 0:00:25]} Kg5 $2 {[%emt 0:00:54]} (59... Ke6 $18 60. Rf4 Rg8 61. Rxh4 Rg5 62. Rh6+ Kd7) 60. c5 {[%emt 0:00:11]} Rc2 {[%emt 0:00:48]} 61. Rc3 {[%emt 0:00:38]} Rd2+ {[%emt 0:00:29]} 62. Ke5 {[%emt 0:00:06]} Re2+ {[%emt 0:00:25]} 63. Kd6 {[%emt 0:00:27]} (63. Kd5 $142 Kf6 64. Kd6 Rd2+ 65. Kc7 Rb2 66. c6 Ke6 67. Rc4 Kf7 68. Kd7 (68. Rxh4 Ke6 $18) 68... Rd2+ 69. Kc8) 63... Rd2+ {[%emt 0:00:19]} 64. Ke7 {[%emt 0:00:28] Weiß setzt Matt.} Re2+ {[%emt 0:00:08]} 65. Kf7 {[%emt 0:00:10]} Kf4 {[%emt 0:00:52]} 66. c6 {[%emt 0:00:18]} Ra2 {[%emt 0:00:11]} 67. c7 {[%emt 0:00:14]} Ra7 {[%emt 0:01:10]} 68. Ke8 {[%emt 0:00:09] Gewichteter Fehlerwert: Weiß=0.25 (präzise) /Schwarz=0.49.  Verlustzug:     	---       	Schwarz=1     Gewinn verpasst:   	Weiß=1     	---        Fehler:       	Weiß=5     	Schwarz=5     Ungenau:       	Weiß=4     	Schwarz=5     OK:         	Weiß=17    	Schwarz=15    Bester:       	Weiß=3     	Schwarz=2     Stark:        	Weiß=2     	Schwarz=2} 1-0

[Event "1000GM Schev-C-B February 2024"]
[Site "Santa Clara"]
[Date "2024.02.24"]
[Round "2.2"]
[White "Gracia Alvarez, Gerardo Antonio"]
[Black "Qi, Jenny"]
[Result "1-0"]
[ECO "B53"]
[WhiteElo "2224"]
[BlackElo "1605"]
[Annotator "RC"]
[PlyCount "65"]
[EventDate "2024.02.13"]
[EventType "schev"]
[EventCountry "USA"]
[SourceTitle "playchess.com"]
[Source "ChessBase"]
[SourceQuality "1"]
[TimeControl "5400+30"]

1. e4 {[%emt 0:00:05]} c5 {[%emt 0:02:46]} 2. Nf3 {[%emt 0:00:05]} d6 {[%emt 1:28:44]} 3. d4 {[%emt 0:00:04]} cxd4 {[%emt 0:00:00]} 4. Qxd4 {[%emt 0:00:04]} Nc6 {[%emt 0:01:00]} 5. Qe3 {[%emt 0:00:09]} Nf6 {[%emt 0:00:00]} 6. Be2 {[%emt 0:00:11]} g6 {[%emt 0:00:00]} 7. O-O {[%emt 0:00:09]} Bg7 {[%emt 0:00:00]} 8. h3 {[%emt 0:00:06]} O-O {[%emt 0:00:00]} 9. Rd1 {[%emt 0:00:07]} Be6 {[%emt 0:00:00]} 10. Nc3 {[%emt 0:00:07]} Qc8 {[%emt 0:00:00]} 11. a3 {[%emt 0:00:57]} Rd8 {[%emt 0:00:00]} 12. Nd5 {[%emt 0:00:28]} Bxd5 {[%emt 0:00:00]} 13. exd5 {[%emt 0:00:12]} Ne5 {[%emt 0:00:00]} 14. Nxe5 {[%emt 0:00:40]} dxe5 {[%emt 0:00:00]} 15. c4 {[%emt 0:00:09]} Nd7 {[%emt 0:00:00]} 16. b4 {[%emt 0:01:46]} e4 {[%emt 0:00:00]} 17. Rb1 {[%emt 0:01:51]} f5 {[%emt 0:00:00]} 18. c5 {[%emt 0:00:29]} Nf6 {[%emt 0:00:00]} 19. Qb3 {[%emt 0:01:18]} Kh8 {[%emt 0:00:00]} 20. Bf4 {[%emt 0:01:36]} Nd7 {[%emt 0:00:00]} 21. Rbc1 {[%emt 0:01:10]} Ne5 {[%emt 0:00:00]} 22. Qg3 {[%emt 0:02:15]} Nd3 {[%emt 0:00:00]} 23. Bxd3 {[%emt 0:00:09]} exd3 {[%emt 0:00:00]} 24. Rxd3 {[%emt 0:00:06]} Qd7 {[%emt 0:00:00]} 25. Re1 {[%emt 0:00:48]} Re8 {[%emt 0:00:00]} 26. Be5 {[%emt 0:00:54]} Rad8 {[%emt 0:00:00]} 27. h4 {[%emt 0:00:49]} Bxe5 {[%emt 0:00:00]} 28. Qxe5+ {[%emt 0:00:07]} Kg8 {[%emt 0:00:00]} 29. h5 {[%emt 0:00:24]} a5 {[%emt 0:00:00]} 30. hxg6 {[%emt 0:03:15]} hxg6 {[%emt 0:00:00]} 31. Rh3 {[%emt 0:00:43]} Qxd5 {[%emt 0:00:00]} 32. Qh8+ {[%emt 0:00:07]} Kf7 {[%emt 0:00:00]} 33. Rh7# {[%emt 0:00:41]} 1-0

[Event "1000GM Schev-C-B February 2024"]
[Site "Santa Clara"]
[Date "2024.02.24"]
[Round "2.3"]
[White "Echavarria, Johann"]
[Black "Widjaja, Luke"]
[Result "1-0"]
[ECO "D38"]
[WhiteElo "2269"]
[BlackElo "2037"]
[Annotator "TA"]
[PlyCount "61"]
[EventDate "2024.02.13"]
[EventType "schev"]
[EventCountry "USA"]
[SourceTitle "playchess.com"]
[Source "ChessBase"]
[SourceQuality "1"]
[TimeControl "5400+30"]

{[%evp 15,61,23,22,22,120,120,103,69,62,23,8,9,38,27,55,23,70,76,79,78,91,96,146,110,97,94,131,137,435,432,446,467,437,320,664,687,822,814,1394,1386,29983,29984,29989,29990,29990,29991,29986,2000]} 1. d4 d5 2. c4 e6 3. Nf3 Nf6 4. Nc3 Bb4 5. cxd5 exd5 6. Bg5 {[%cal Bc1g5,Bg5h4,Bh4g3][%mdl 32]} h6 7. Bh4 g5 8. Bg3 Ne4 9. Nd2 $1 {Ndxe4 ist eine echte Drohung.} Bf5 (9... Nxc3 $11 {bleibt in der Remisbreite.} 10. bxc3 (10. Qb3 Nxa2 11. Rxa2 Nc6 $17) 10... Bxc3) 10. Ndxe4 $16 Bxe4 11. Qb3 {Weiß steht besser.} Nc6 12. e3 {Weiss will Bb5 spielen.} Qe7 {[%cal Oc6d4]} 13. O-O-O {[#] f3 wäre nun fies.} Bxc3 14. bxc3 {[%cal Od1d2]} O-O 15. Kb2 {[%cal Of2f3]} Rfb8 (15... Na5 $11 16. Qb5 (16. Qb4 Qxb4+ 17. cxb4 Nc4+ 18. Bxc4 dxc4 $11) 16... Nc4+ 17. Bxc4 dxc4) 16. f3 $14 Bg6 (16... Na5 17. Qb4 Nc6 18. Qxe7 Nxe7 19. fxe4 $18) 17. Qxd5 Qxe3 18. Bb5 $36 {[%cal Oh1e1][%mdl 2048] [#] Schwarz muss nun Rhe1! beachten. Weiss hat starke Initiative. Aktives Gegenspiel!} (18. Bxc7 Rc8 19. Bd6 g4 $11) 18... Qe7 (18... Rd8 $142 19. Qc4 g4) 19. Rde1 {[%emt 0:09:30]} Qf6 {[%emt 0:09:30]} 20. h4 {[%emt 0:00:30][%cal Bh2h4,Bh4g5][%mdl 32]} Rd8 {[%emt 0:00:30]} 21. Qc5 {[%emt 0:00:30]} h5 $2 {[%emt 0:00:30][%mdl 8192] Danach kann Schwarz die Partie nicht mehr halten.} (21... Kg7 $16 {kämpft weiter.} 22. Bxc6 (22. Bxc7 Rd7 $18) 22... Qxc6) 22. hxg5 $18 {[%emt 0:00:30]} (22. Bxc7 gxh4 23. Bxd8 Rxd8 24. Bxc6 bxc6) 22... Qg7 {[%emt 0:00:30] Schwarz hat schwache schwarze Felder} 23. Bxc6 {[%emt 0:00:30]} (23. Bxc7 Rdc8 24. Qd6 a6 $18) 23... bxc6 {[%emt 0:00:30]} 24. Be5 {[%emt 0:00:30]} (24. Qxc6 Qf8 25. Bxc7 Rxd4 $18) 24... Qh7 {[%emt 0:00:30]} (24... Qf8 25. Qxf8+ (25. Qxc6 Rab8+ 26. Ka1 Qa3 $16) 25... Rxf8) 25. g4 {[%emt 0:00:30]} Rab8+ {[%emt 0:00:30]} 26. Ka1 {[%emt 0:00:30]} Rd5 {[%emt 0:00:30]} 27. Qxc6 {[%emt 0:00:30]} Rdb5 {[%emt 0:00:30]} 28. Bf6 {[%emt 0:00:30] Weiß setzt Matt.} Rb1+ {[%emt 0:00:30]} 29. Rxb1 {[%emt 0:00:30]} Bxb1 {[%emt 0:00:30]} 30. Qxc7 {[%emt 0:00:30][%cal Rc7b8]} (30. gxh5 Qc2) 30... Re8 {[%emt 0:00:30]} 31. gxh5 {[%emt 0:00:30] Gewichteter Fehlerwert: Weiß=0.14 (sehr präzise) /Schwarz=0.82.  Verlustzug:     	---       	Schwarz=1     Fehler:       	---       	Schwarz=4     Ungenau:       	Weiß=3     	Schwarz=2     OK:         	Weiß=10    	Schwarz=4     Bester:       	---       	Schwarz=1} (31. Rxb1 $142 Qd3 32. gxh5 (32. Qxa7 $2 {führt zum Matt.} Qxc3+ 33. Rb2 Re1#) 32... Rf8 33. g6 (33. Qxa7 Qxc3+ 34. Rb2 Qc1+ 35. Rb1 Qc3+ 36. Rb2 Qe1+ 37. Rb1 Qc3+ $11) 33... Qxf3 34. Be5 (34. gxf7+ Kh7 $18) 34... Qg4 35. h6 (35. Qxa7 Qc8 $18) (35. gxf7+ Kh7 36. Bd6 Qc8 37. Qxc8 Rxc8 38. f8=Q Rxf8 39. Bxf8 Kg8) 35... Qxg6 36. h7+ (36. Qxa7 Kh7 $18) 36... Kxh7 37. Rh1+ (37. Qxa7 Qc6 $18) 37... Qh6 38. Rxh6+ Kxh6 39. Bf6 (39. Qxa7 Rg8 40. Qxf7 Rg5 41. Kb2 Rg2+ 42. Kb3 Rg5 43. a4 Rg4 44. Bf4+ Rxf4)) 1-0

[Event "1000GM Schev-C-B February 2024"]
[Site "Santa Clara"]
[Date "2024.02.24"]
[Round "2.4"]
[White "Chinni, Rishabh"]
[Black "Dominguez Aguilar, Guillermo"]
[Result "0-1"]
[ECO "B34"]
[WhiteElo "1939"]
[BlackElo "2319"]
[Annotator "TA"]
[PlyCount "102"]
[EventDate "2024.02.13"]
[EventType "schev"]
[EventCountry "USA"]
[SourceTitle "playchess.com"]
[Source "ChessBase"]
[SourceQuality "1"]
[TimeControl "5400+30"]

{[%evp 21,102,-29,-30,-112,-114,-106,-106,-91,-37,-29,-31,-24,-15,-42,55,57,137,113,113,113,117,116,112,120,108,100,183,192,186,178,241,244,250,154,181,171,252,259,279,272,308,308,308,297,324,324,317,317,329,322,337,250,250,0,0,0,0,0,0,-932,-903,-29979,-29980,-29980,-639,-608,-612,-1193,-789,-650,-567,-543,-513,-29990,-29991,-29993,-29994,-29994,-29995,-29995,-29993,-29993,-29993]} 1. e4 {[%emt 0:00:01]} c5 {[%emt 0:00:21]} 2. Nf3 {[%emt 0:00:04]} Nc6 {[%emt 0:00:45]} 3. d4 {[%emt 0:00:04]} cxd4 {[%emt 0:00:10]} 4. Nxd4 {[%emt 0:00:03]} Nf6 {[%emt 0:00:25]} 5. Nc3 {[%emt 0:00:04]} g6 {[%emt 0:00:32]} 6. Be3 {[%emt 0:01:54]} Bg7 {[%emt 0:00:32]} 7. f3 {[%emt 0:00:23]} O-O {[%emt 0:00:55]} 8. Qd2 {[%emt 0:01:29]} d5 {[%emt 0:01:10]} 9. exd5 {[%emt 0:10:18]} Nxd5 {[%emt 0:00:33]} 10. Nxd5 {[%emt 0:08:08]} Qxd5 {[%emt 0:00:58]} 11. Nxc6 {[%emt 0:00:13]} Qxc6 {[%emt 0:00:41]} 12. O-O-O {[%emt 0:00:17]} (12. c3 $11 {hält das Gleichgewicht.}) 12... Bf5 $17 {[%emt 0:03:12][%cal Oa8d8] Droht stark ...Rad8!} 13. Bd3 {[%emt 0:13:49]} Rfd8 {[%emt 0:04:10]} 14. Qe2 {[%emt 0:00:45] [#] Schwarz steht besser.} Qe6 {[%emt 0:23:36] Schwarz steht aktiver.} (14... Be6 $1 $17 {[%cal Re6a2]} 15. a3 Qd5) 15. Bc4 $15 {[%emt 0:10:59]} Qe5 {[%emt 0:01:36][%csl Gg7][%cal Re5b2]} 16. c3 {[%emt 0:00:13]} Rdc8 {[%emt 0:04:51][%cal Oc8c4] Droht ...Rxc4! und aus.} (16... Rxd1+ {vereinfacht} 17. Rxd1 Qxh2 18. Bd5 Bh6) 17. Rd5 {[%emt 0:16:29]} Qf6 {[%emt 0:07:07]} (17... Qb8 $15) 18. g4 $14 {[%emt 0:17:11]} Qh4 {[%emt 0:12:08]} (18... Be6 $2 19. Bg5 $18) (18... Rxc4 $14 19. Qxc4 Be6) 19. gxf5 {[%emt 0:05:05]} Rxc4 {[%emt 0:00:22]} 20. fxg6 {[%emt 0:00:46]} hxg6 {[%emt 0:00:36]} 21. Bg5 {[%emt 0:00:21]} Bh6 {[%emt 0:02:23]} 22. f4 {[%emt 0:00:54]} (22. Qxe7 $6 Bxg5+ 23. Qxg5 Rb8 $14) 22... Bxg5 {[%emt 0:00:45]} 23. Qxc4 {[%emt 0:00:06]} Bxf4+ {[%emt 0:00:43]} (23... Qxf4+ $16 {ist eine bessere Verteidigung.} 24. Qxf4 Bxf4+ 25. Kc2 b6) 24. Kb1 $18 {[%emt 0:00:04]} Qf6 {[%emt 0:02:05] [#]} 25. Qe4 $1 {[%emt 0:00:57]} Bd6 {[%emt 0:02:44]} (25... Kg7 {war einen Versuch wert.} 26. Rd7 Be5 27. Rxb7 (27. Qxb7 Rb8 $11) 27... Rh8) 26. h4 {[%emt 0:01:19]} Kg7 {[%emt 0:02:40]} 27. Rdd1 {[%emt 0:01:10]} Rh8 {[%emt 0:01:07]} 28. Qxb7 {[%emt 0:01:07]} Rb8 {[%emt 0:00:16]} (28... Qf5+ $142 29. Ka1 Qc5) 29. Qxa7 {[%emt 0:00:44]} Be5 {[%emt 0:00:46][%cal Of6f3]} 30. Ka1 {[%emt 0:02:59]} Qc6 {[%emt 0:01:48][%cal Ob8b2]} 31. Qe3 {[%emt 0:00:42]} (31. Qxe7 $2 Qxc3 32. Rb1 Qxb2+ (32... Rxb2 $2 33. Qxe5+ Qxe5 34. Rxb2 $19) 33. Rxb2 Bxb2+ 34. Kb1 Ba3+ 35. Kc2 Bxe7 $19) 31... Bf6 {[%emt 0:01:15]} 32. h5 {[%emt 0:00:30][%cal Bh4h5,Bh5h6,Bh6h7][%mdl 32] hxg6 ist eine echte Drohung.} g5 {[%emt 0:02:23]} 33. h6+ {[%emt 0:00:09]} Kh8 {[%emt 0:00:20]} 34. h7 {[%emt 0:01:12]} Ra8 {[%emt 0:02:31]} 35. Qd2 {[%emt 0:01:30][%cal Od2d8] Und Qd8+! würde nun gewinnen.} e6 {[%emt 0:00:27]} 36. Rh6 {[%emt 0:01:05]} Qc4 {[%emt 0:00:30]} 37. a3 {[%emt 0:01:37]} (37. b3 $18 Qf4 38. Qxf4 Bxc3+ 39. Kb1 gxf4 40. a4) 37... Rxa3+ $1 $40 {[%emt 0:00:14][%mdl 128] Schwarz greift an.} 38. Kb1 $1 {[%emt 0:01:18][%cal Od2d8] jetzt Qd8+! und aus.} Qa2+ {[%emt 0:00:40]} 39. Kc1 {[%emt 0:00:45]} Ra8 {[%emt 0:00:25] Pariert Qd8+.} (39... Rb3 40. Qd8+ (40. Rxf6 Qa1+ 41. Kc2 Rxb2+ 42. Kd3 Rxd2+ 43. Rxd2 Qb1+ 44. Ke3 Qg1+ 45. Kd3 Kxh7 $17) 40... Bxd8 41. Rxd8+ Kg7 42. h8=Q#) 40. Qd7 $2 {[%emt 0:02:10][%mdl 8192] [#]} (40. Rxf6 $11 Qa1+ 41. Kc2 Qa4+ 42. Kc1 (42. b3 Qa2+ 43. Kd3 Rd8+ 44. Ke2 Qa6+ $11) 42... Qa1+ 43. Kc2 Qa4+ 44. Kc1 (44. b3 Qa2+ 45. Kd3 Rd8+ 46. Ke2 Rxd2+ 47. Rxd2 Qa6+ 48. Kf2 Qa7+ 49. Kg2 Kxh7 $11) 44... Qa1+) 40... Rb8 $1 $19 {[%emt 0:02:19]} 41. Rd2 {[%emt 0:00:22]} (41. b4 Qa3+) 41... Qa1+ {[%emt 0:01:33]} 42. Kc2 {[%emt 0:00:03]} Qxb2+ {[%emt 0:09:31]} (42... Rxb2+ $142 43. Kd3 Qf1+ 44. Ke3 Qe1+ (44... Bxc3 45. Qe8+ Kg7 46. h8=Q#) 45. Kf3 g4+ (45... Rxd2 46. Qe8+ Kg7 47. h8=Q#) 46. Kf4 Qe5+ (46... Rxd2 47. Qe8+ Kg7 48. h8=Q#) 47. Kxg4 Qf5+ (47... Qxc3 48. Qe8+ Kg7 49. h8=Q#) 48. Kg3 Be5+ (48... Bxc3 49. Qe8+ Kg7 50. h8=Q#) 49. Kg2 Qg4+ (49... Bxc3 50. Qe8+ Kg7 51. h8=Q#) (49... Qg5+ 50. Kf3 Qg3+ 51. Ke2 Qg4+ 52. Kf1 Rb1+ 53. Rd1 Rxd1+ 54. Qxd1 Qxd1+ 55. Kf2 Bxc3 56. Rh2 Bd4+ 57. Kg3 Be5+ 58. Kf2 Bxh2 59. Ke3 Bg1+ 60. Kf4 Bf2 61. Kg5 Qf3 62. Kh6 Be3#) 50. Kf1 Rb1+ (50... Bxc3 51. Qe8+ Kg7 52. h8=Q#) (50... Qf3+ 51. Kg1 Rb1+ 52. Rd1 Rxd1+ 53. Qxd1 Qxd1+ 54. Kf2 Bxc3 55. Rh2 Bd4+ 56. Kg3 Be5+ 57. Kf2 Bxh2 58. Kg2 Qe2+ 59. Kh1 Bg3 60. Kg1 Qf2+ 61. Kh1 Qh2#) 51. Rd1 Rxd1+ 52. Qxd1 Qxd1+ 53. Kf2 Bxc3 (53... Qd2+ 54. Kf3 Qxh6 55. Ke4 Qh5 56. Kd3 Qf3+ 57. Kd2 Qxc3+ 58. Ke2 Bd4 59. Kd1 Qd3+ 60. Kc1 Qe2 61. Kb1 Qb2#) 54. Rh2 Bd4+ 55. Kg3 Be5+ 56. Kf2 Bxh2 57. Ke3 Bg1+ (57... Kxh7 58. Kf2 Bf4 59. Kg2 Qe2+ 60. Kh3 Kg6 61. Kh4 Qh5#) 58. Kf4 Bf2 (58... Kxh7 59. Kg3 Qd2 60. Kh4 Qg2 61. Kh5 f5 62. Kh4 Qg4#) 59. Kg5 Qf3 60. Kh6 Be3#) 43. Kd1 {[%emt 0:00:41]} Qxc3 {[%emt 0:01:12]} (43... Qb1+ 44. Ke2 Qe4+ (44... Bxc3 45. Qd8+ Rxd8 46. Rxd8+ Kg7 47. h8=Q#) 45. Kf2 Qf4+ (45... Bxc3 46. Qd8+ Rxd8 47. Rxd8+ Kg7 48. h8=Q#) 46. Kg2 $19) 44. Ke2 {[%emt 0:01:19] Gegen Qf3+ gerichtet.} Qe5+ {[%emt 0:00:59]} 45. Kf2 {[%emt 0:00:30]} Qf4+ {[%emt 0:00:33]} 46. Kg2 {[%emt 0:01:06]} g4 {[%emt 0:01:12] ( -> ...Qf3+)} 47. Qd6 {[%emt 0:00:19]} (47. Rxf6 $19 Qxf6 48. Qd3) 47... Qe4+ {[%emt 0:00:45] Schwarz setzt Matt.} ({Minderwertig wäre} 47... Be5 48. Qxb8+ Bxb8 49. Rd8+ Kg7 50. h8=Q#) 48. Kg1 {[%emt 0:00:40]} Rb1+ {[%emt 0:00:35]} 49. Rd1 {[%emt 0:00:04]} Bd4+ {[%emt 0:01:11]} 50. Kh2 {[%emt 0:00:41]} Be5+ {[%emt 0:01:00]} ({Nicht} 50... Rxd1 51. Qf8#) 51. Kg1 {[%emt 0:00:41]} Bxd6 {[%emt 0:00:30] Gewichteter Fehlerwert: Weiß=0.62/Schwarz=0.48.  Verlustzug:     	Weiß=1     	---        Gewinn verpasst:   	Weiß=1     	---        Fehler:       	Weiß=1     	Schwarz=6     Ungenau:       	Weiß=2     	---        OK:         	Weiß=17    	Schwarz=11    Bester:       	Weiß=2     	Schwarz=2     Stark:        	Weiß=1     	Schwarz=2} 0-1

[Event "1000GM Schev-C-B February 2024"]
[Site "Santa Clara"]
[Date "2024.02.24"]
[Round "2.5"]
[White "Jin, Austin"]
[Black "Gongora Montes, Benjamin"]
[Result "1-0"]
[ECO "C02"]
[WhiteElo "1836"]
[BlackElo "2173"]
[Annotator "RC"]
[PlyCount "67"]
[EventDate "2024.02.13"]
[EventType "schev"]
[EventCountry "USA"]
[SourceTitle "playchess.com"]
[Source "ChessBase"]
[SourceQuality "1"]
[TimeControl "5400+30"]

1. e4 {[%emt 0:00:02]} e6 {[%emt 0:00:42]} 2. d4 {[%emt 0:00:17]} d5 {[%emt 0:00:03]} 3. e5 {[%emt 0:00:09]} c5 {[%emt 0:00:06]} 4. c3 {[%emt 0:00:16]} Nc6 {[%emt 0:00:16]} 5. Nf3 {[%emt 0:00:18]} Bd7 {[%emt 0:00:37]} 6. Be2 {[%emt 0:00:30]} cxd4 {[%emt 0:01:00]} 7. cxd4 {[%emt 0:00:46]} b5 {[%emt 0:00:28]} 8. O-O {[%emt 0:03:37]} Nge7 {[%emt 0:03:02]} 9. Bxb5 {[%emt 0:15:15]} Nxe5 {[%emt 0:00:57]} 10. Nxe5 {[%emt 0:00:18]} Bxb5 {[%emt 0:00:08]} 11. Nc3 {[%emt 0:00:42]} Bd7 {[%emt 0:00:28]} 12. Re1 {[%emt 0:01:41]} f6 {[%emt 0:02:44]} 13. Nd3 {[%emt 0:01:44]} Kf7 {[%emt 0:00:29]} 14. Nf4 {[%emt 0:04:55]} Rb8 {[%emt 0:05:31]} 15. Qe2 {[%emt 0:04:16]} Rb6 {[%emt 0:00:19]} 16. a4 {[%emt 0:02:42]} Qc8 {[%emt 0:00:56]} 17. a5 {[%emt 0:00:31]} Rb4 {[%emt 0:01:34]} 18. Be3 {[%emt 0:11:21]} Qb8 {[%emt 0:04:36]} 19. Bc1 {[%emt 0:04:34]} Qc8 {[%emt 0:00:40]} 20. Be3 {[%emt 0:00:28]} Nf5 {[%emt 0:04:05]} 21. Rac1 {[%emt 0:06:55]} Qb8 {[%emt 0:06:37]} 22. Qh5+ {[%emt 0:20:46]} Kg8 {[%emt 0:01:25]} 23. Nd3 {[%emt 0:02:28]} Rc4 {[%emt 0:01:14]} 24. Ne2 {[%emt 0:04:07]} Bb4 {[%emt 0:29:06]} 25. Red1 {[%emt 0:03:12]} Be8 {[%emt 0:06:04]} 26. Qh3 {[%emt 0:01:08]} Rxc1 {[%emt 0:04:20]} 27. Rxc1 {[%emt 0:00:34]} Bxa5 {[%emt 0:00:05]} 28. Nef4 {[%emt 0:01:33]} Bf7 {[%emt 0:08:39]} 29. Nxd5 {[%emt 0:00:58]} h6 {[%emt 0:00:08]} 30. N5f4 {[%emt 0:02:22]} Kh7 {[%emt 0:03:24]} 31. d5 {[%emt 0:00:50]} Nxe3 {[%emt 0:00:37]} 32. fxe3 {[%emt 0:00:27]} Rc8 {[%emt 0:08:41]} 33. Rxc8 {[%emt 0:01:56]} Qxc8 {[%emt 0:00:15]} 34. dxe6 {[%emt 0:00:08]} 1-0